[Event "44th Chess Olympiad Open 2022"]
[Site "Chennai"]
[Date "2022.08.03"]
[Round "6.75"]
[White "Adu-Poku, Kwabena"]
[Black "Hlophe, Smilo"]
[Result "1-0"]
[WhiteElo "1974"]
[BlackElo "1731"]
[Annotator "NA RC"]
[PlyCount "101"]
[EventDate "2022.??.??"]
[TimeControl "60"]

1. d4 {[%emt 0:00:06]} d5 {[%emt 0:00:29]} 2. c4 {[%emt 0:00:13]} c6 {[%emt 0:
00:00]} 3. Nc3 {[%emt 0:00:17]} Nf6 {[%emt 0:00:09]} 4. e3 {[%emt 0:00:52]} Bf5
{[%emt 0:07:11]} 5. cxd5 {[%emt 0:02:36]} Nxd5 {[%emt 0:01:28]} 6. Nf3 {
[%emt 0:06:42]} e6 {[%emt 0:00:36]} 7. Bd3 {[%emt 0:00:42]} Bxd3 {[%emt 0:00:
00]} 8. Qxd3 {[%emt 0:00:09]} Be7 {[%emt 0:01:06]} 9. O-O {[%emt 0:00:36]} O-O
{[%emt 0:00:04]} 10. a3 {[%emt 0:01:12]} Nd7 {[%emt 0:00:40]} 11. e4 {[%emt 0:
00:00]} Nxc3 {[%emt 0:00:38]} 12. bxc3 {[%emt 0:00:08]} Qa5 {[%emt 0:05:52]}
13. Bf4 {[%emt 0:05:25]} Rfd8 {[%emt 0:04:29]} 14. Rfb1 {[%emt 0:02:19]} b6 {
[%emt 0:05:16]} 15. a4 {[%emt 0:11:00]} Bf6 {[%emt 0:10:16]} 16. Nd2 {[%emt 0:
00:00]} Qh5 {[%emt 0:03:51]} 17. a5 {[%emt 0:08:22]} e5 {[%emt 0:14:08]} 18.
Be3 {[%emt 0:00:38]} exd4 {[%emt 0:00:00]} 19. cxd4 {[%emt 0:03:13]} Ne5 {
[%emt 0:03:33]} 20. Qc2 {[%emt 0:04:08]} Ng4 {[%emt 0:00:32]} 21. Nf3 {[%emt 0:
00:00]} c5 {[%emt 0:14:23]} 22. h3 {[%emt 0:00:00]} Nxe3 {[%emt 0:02:14]} 23.
fxe3 {[%emt 0:00:00]} Rac8 {[%emt 0:05:06]} 24. Qd2 {[%emt 0:07:21]} h6 {
[%emt 0:04:07]} 25. axb6 {[%emt 0:00:00]} axb6 {[%emt 0:01:34]} 26. Ra4 {
[%emt 0:00:00]} Rc6 {[%emt 0:04:34]} 27. Qe2 {[%emt 0:00:00]} Re8 {[%emt 0:00:
00]} 28. Qb5 {[%emt 0:00:00]} Rcc8 {[%emt 0:01:49]} 29. e5 {[%emt 0:02:24]} Bg5
{[%emt 0:00:34]} 30. Re1 {[%emt 0:01:50]} Qg6 {[%emt 0:00:37]} 31. Ra6 {
[%emt 0:01:27]} Rb8 {[%emt 0:02:09]} 32. d5 {[%emt 0:03:07]} Rec8 {[%emt 0:00:
00]} 33. d6 {[%emt 0:03:43]} Bd8 {[%emt 0:01:07]} 34. Rc1 {[%emt 0:04:14]} Qe6
{[%emt 0:01:00]} 35. Rca1 {[%emt 0:06:21]} f6 {[%emt 0:00:28]} 36. Ra7 {
[%emt 0:04:55]} fxe5 {[%emt 0:01:27]} 37. Qd7 {[%emt 0:00:26]} Qxd7 {[%emt 0:
00:00]} 38. Rxd7 {[%emt 0:00:02]} Bf6 {[%emt 0:00:07]} 39. Raa7 {[%emt 0:01:04]
} c4 {[%emt 0:00:07]} 40. Rdc7 {[%emt 0:00:34]} Rd8 {[%emt 0:01:10]} 41. d7 {
[%emt 0:31:17]} b5 {[%emt 0:30:32]} 42. Ne1 {[%emt 0:00:47]} Kf7 {[%emt 0:00:
00]} 43. Nc2 {[%emt 0:00:27]} Ke6 {[%emt 0:00:56]} 44. Nb4 {[%emt 0:00:39]} c3
{[%emt 0:00:00]} 45. Rc6+ {[%emt 0:00:00]} Ke7 {[%emt 0:00:00]} 46. Rxc3 {
[%emt 0:00:00]} Kd6 {[%emt 0:00:00]} 47. Rc6+ {[%emt 0:00:00]} Ke7 {[%emt 0:00:
00]} 48. Rca6 {[%emt 0:00:00]} Kf7 {[%emt 0:00:00]} 49. Nc6 {[%emt 0:00:00]} b4
{[%emt 0:00:00]} 50. Nxb8 {[%emt 0:00:00]} b3 {[%emt 0:00:00]} 51. Rb7 {
[%emt 0:00:00]} 1-0

[Event "44th Chess Olympiad Open 2022"]
[Site "Chennai"]
[Date "2022.08.03"]
[Round "6.75"]
[White "Fomevor, Cephas Clinton"]
[Black "Nxumalo, Vuyo"]
[Result "1/2-1/2"]
[WhiteElo "1830"]
[BlackElo "1493"]
[Annotator "NA RC"]
[PlyCount "94"]
[EventDate "2022.??.??"]
[TimeControl "60"]

1. d4 {[%emt 0:00:03]} d5 {[%emt 0:01:05]} 2. Nf3 {[%emt 0:00:18]} c5 {[%emt 0:
00:00]} 3. c4 {[%emt 0:05:39]} Nc6 {[%emt 0:02:38]} 4. Nc3 {[%emt 0:03:35]}
cxd4 {[%emt 0:02:35]} 5. Nxd4 {[%emt 0:02:33]} dxc4 {[%emt 0:01:29]} 6. Nxc6 {
[%emt 0:04:11]} Qxd1+ {[%emt 0:00:11]} 7. Nxd1 {[%emt 0:00:36]} bxc6 {[%emt 0:
00:00]} 8. Bf4 {[%emt 0:01:25]} f6 {[%emt 0:01:09]} 9. Rc1 {[%emt 0:05:05]} e5
{[%emt 0:02:37]} 10. Bd2 {[%emt 0:00:57]} Be6 {[%emt 0:01:16]} 11. e3 {[%emt 0:
00:00]} a5 {[%emt 0:03:28]} 12. Bxc4 {[%emt 0:02:26]} Bd5 {[%emt 0:00:26]} 13.
f3 {[%emt 0:11:05]} Bb4 {[%emt 0:02:31]} 14. e4 {[%emt 0:02:22]} Bxd2+ {
[%emt 0:01:29]} 15. Kxd2 {[%emt 0:00:03]} Bxc4 {[%emt 0:00:12]} 16. Rxc4 {
[%emt 0:00:24]} Ne7 {[%emt 0:00:17]} 17. Ne3 {[%emt 0:03:13]} Kd7 {[%emt 0:00:
00]} 18. Rd1 {[%emt 0:00:50]} Rhd8 {[%emt 0:00:34]} 19. Ke2+ {[%emt 0:01:48]}
Kc7 {[%emt 0:00:46]} 20. Rdc1 {[%emt 0:08:52]} Rd6 {[%emt 0:19:54]} 21. Ra4 {
[%emt 0:00:26]} Rd4 {[%emt 0:17:46]} 22. Rxd4 {[%emt 0:05:20]} exd4 {[%emt 0:
00:00]} 23. Nd5+ {[%emt 0:01:00]} Nxd5 {[%emt 0:00:16]} 24. exd5 {[%emt 0:00:
00]} Re8+ {[%emt 0:02:07]} 25. Kd3 {[%emt 0:02:09]} Re3+ {[%emt 0:00:18]} 26.
Kd2 {[%emt 0:02:14]} Re5 {[%emt 0:02:19]} 27. dxc6 {[%emt 0:02:24]} Rg5 {
[%emt 0:04:05]} 28. g4 {[%emt 0:09:16]} h5 {[%emt 0:00:53]} 29. h3 {[%emt 0:00:
00]} hxg4 {[%emt 0:01:09]} 30. fxg4 {[%emt 0:05:56]} Re5 {[%emt 0:01:00]} 31.
Kd3 {[%emt 0:01:20]} Re3+ {[%emt 0:00:09]} 32. Kxd4 {[%emt 0:00:36]} Rxh3 {
[%emt 0:00:10]} 33. Kc5 {[%emt 0:07:47]} Rh2 {[%emt 0:00:31]} 34. b3 {[%emt 0:
00:00]} Rxa2 {[%emt 0:00:17]} 35. Rd1 {[%emt 0:00:30]} Rc2+ {[%emt 0:00:34]}
36. Kb5 {[%emt 0:00:36]} Rxc6 {[%emt 0:00:20]} 37. Kxa5 {[%emt 0:00:19]} Rc3 {
[%emt 0:02:08]} 38. Kb4 {[%emt 0:01:10]} Rg3 {[%emt 0:01:48]} 39. Rd4 {[%emt 0:
00:00]} Kc6 {[%emt 0:01:04]} 40. Kc4 {[%emt 0:01:24]} Rg1 {[%emt 0:01:25]} 41.
b4 {[%emt 0:30:41]} Rc1+ {[%emt 0:30:53]} 42. Kd3 {[%emt 0:00:33]} Rd1+ {
[%emt 0:00:18]} 43. Ke3 {[%emt 0:00:39]} Rxd4 {[%emt 0:00:07]} 44. Kxd4 {
[%emt 0:00:02]} Kb5 {[%emt 0:00:21]} 45. Kd5 {[%emt 0:03:54]} g6 {[%emt 0:00:
00]} 46. Ke6 {[%emt 0:00:00]} f5 {[%emt 0:00:00]} 47. gxf5 {[%emt 0:00:00]}
gxf5 {[%emt 0:00:00]} 1/2-1/2

[Event "44th Chess Olympiad Open 2022"]
[Site "Chennai"]
[Date "2022.08.03"]
[Round "6.75"]
[White "Mbongeni, Mabuza"]
[Black "Hasford, John Kojo"]
[Result "0-1"]
[WhiteElo "1669"]
[BlackElo "1976"]
[Annotator "NA RC"]
[PlyCount "78"]
[EventDate "2022.??.??"]
[TimeControl "60"]

1. d4 {[%emt 0:00:18]} d6 {[%emt 0:00:24]} 2. e4 {[%emt 0:00:12]} g6 {[%emt 0:
00:00]} 3. g3 {[%emt 0:00:25]} Bg7 {[%emt 0:00:42]} 4. Bg2 {[%emt 0:00:16]} Nc6
{[%emt 0:00:33]} 5. Be3 {[%emt 0:00:24]} Nf6 {[%emt 0:00:53]} 6. h3 {[%emt 0:
00:00]} O-O {[%emt 0:00:22]} 7. Ne2 {[%emt 0:00:25]} e5 {[%emt 0:00:56]} 8.
Nbc3 {[%emt 0:01:16]} a6 {[%emt 0:01:19]} 9. O-O {[%emt 0:00:10]} Bd7 {[%emt 0:
00:00]} 10. Qd2 {[%emt 0:00:33]} exd4 {[%emt 0:01:12]} 11. Nxd4 {[%emt 0:00:13]
} Re8 {[%emt 0:00:56]} 12. Rfe1 {[%emt 0:00:46]} Rb8 {[%emt 0:05:08]} 13. a4 {
[%emt 0:01:41]} Nxd4 {[%emt 0:01:10]} 14. Bxd4 {[%emt 0:00:13]} Bc6 {[%emt 0:
00:00]} 15. Rad1 {[%emt 0:00:37]} Qd7 {[%emt 0:01:30]} 16. b3 {[%emt 0:00:09]}
Rbd8 {[%emt 0:00:21]} 17. f4 {[%emt 0:06:48]} Qc8 {[%emt 0:02:50]} 18. Qf2 {
[%emt 0:00:20]} Bd7 {[%emt 0:05:07]} 19. Kh2 {[%emt 0:01:00]} h5 {[%emt 0:00:
00]} 20. e5 {[%emt 0:00:10]} dxe5 {[%emt 0:00:54]} 21. fxe5 {[%emt 0:00:58]}
Nh7 {[%emt 0:00:43]} 22. Ne4 {[%emt 0:05:24]} Bc6 {[%emt 0:02:26]} 23. Nf6+ {
[%emt 0:00:19]} Bxf6 {[%emt 0:01:47]} 24. Bxc6 {[%emt 0:00:09]} bxc6 {[%emt 0:
00:00]} 25. exf6 {[%emt 0:00:11]} Rxe1 {[%emt 0:03:25]} 26. Rxe1 {[%emt 0:00:
00]} Ng5 {[%emt 0:00:44]} 27. g4 {[%emt 0:06:45]} Nxh3 {[%emt 0:04:55]} 28. Qe3
{[%emt 0:04:46]} Qxg4 {[%emt 0:00:45]} 29. Qh6 {[%emt 0:00:10]} Qf4+ {[%emt 0:
00:00]} 30. Qxf4 {[%emt 0:00:04]} Nxf4 {[%emt 0:00:11]} 31. c3 {[%emt 0:00:34]}
Ne6 {[%emt 0:00:34]} 32. Be5 {[%emt 0:11:35]} Kh7 {[%emt 0:00:30]} 33. b4 {
[%emt 0:00:47]} g5 {[%emt 0:00:09]} 34. c4 {[%emt 0:04:09]} Kg6 {[%emt 0:00:12]
} 35. b5 {[%emt 0:00:11]} cxb5 {[%emt 0:00:22]} 36. cxb5 {[%emt 0:00:17]} axb5
{[%emt 0:00:11]} 37. axb5 {[%emt 0:00:09]} Rd5 {[%emt 0:00:18]} 38. Bxc7 {
[%emt 0:01:24]} Nxc7 {[%emt 0:00:23]} 39. b6 {[%emt 0:00:12]} Na6 {[%emt 0:00:
00]} 0-1

[Event "44th Chess Olympiad Open 2022"]
[Site "Chennai"]
[Date "2022.08.03"]
[Round "6.75"]
[White "Dlamini Simphiwe"]
[Black "Anhwere, Bernard"]
[Result "0-1"]
[WhiteElo "1569"]
[BlackElo "1890"]
[Annotator "NA RC"]
[PlyCount "67"]
[EventDate "2022.??.??"]
[TimeControl "60"]

1. e4 {[%emt 0:00:20]} c5 {[%emt 0:00:23]} 2. Nf3 {[%emt 0:00:09]} d6 {[%emt 0:
00:00]} 3. d4 {[%emt 0:00:06]} cxd4 {[%emt 0:00:07]} 4. Nxd4 {[%emt 0:00:06]}
Nf6 {[%emt 0:00:09]} 5. Nc3 {[%emt 0:00:06]} a6 {[%emt 0:00:06]} 6. f3 {
[%emt 0:00:14]} e5 {[%emt 0:01:37]} 7. Nb3 {[%emt 0:00:07]} Be7 {[%emt 0:00:33]
} 8. Be3 {[%emt 0:00:23]} Be6 {[%emt 0:00:28]} 9. Qd2 {[%emt 0:00:13]} Nbd7 {
[%emt 0:01:04]} 10. g4 {[%emt 0:00:22]} Rc8 {[%emt 0:05:50]} 11. g5 {[%emt 0:
00:00]} Nh5 {[%emt 0:00:41]} 12. Be2 {[%emt 0:08:33]} Qc7 {[%emt 0:01:22]} 13.
f4 {[%emt 0:14:41]} Nxf4 {[%emt 0:07:41]} 14. Bxf4 {[%emt 0:00:06]} exf4 {
[%emt 0:00:18]} 15. Qxf4 {[%emt 0:00:36]} b5 {[%emt 0:01:05]} 16. Nd5 {[%emt 0:
00:00]} Bxd5 {[%emt 0:01:03]} 17. exd5 {[%emt 0:00:07]} O-O {[%emt 0:01:08]}
18. Nd4 {[%emt 0:11:56]} Ne5 {[%emt 0:02:31]} 19. c3 {[%emt 0:18:17]} Qc5 {
[%emt 0:04:14]} 20. Nf5 {[%emt 0:04:40]} Rfe8 {[%emt 0:01:30]} 21. O-O-O {
[%emt 0:01:34]} Ng6 {[%emt 0:08:58]} 22. Nxe7+ {[%emt 0:00:50]} Rxe7 {[%emt 0:
00:00]} 23. Qd2 {[%emt 0:00:54]} a5 {[%emt 0:08:48]} 24. h4 {[%emt 0:02:17]} b4
{[%emt 0:01:23]} 25. Rh3 {[%emt 0:05:43]} Rxe2 {[%emt 0:05:43]} 26. Qxe2 {
[%emt 0:01:54]} Nf4 {[%emt 0:00:52]} 27. Qf3 {[%emt 0:13:13]} Nxh3 {[%emt 0:00:
00]} 28. Rf1 {[%emt 0:00:49]} Nxg5 {[%emt 0:05:34]} 29. hxg5 {[%emt 0:00:13]}
Rf8 {[%emt 0:00:12]} 30. Rh1 {[%emt 0:04:46]} bxc3 {[%emt 0:06:57]} 31. Qh3 {
[%emt 0:03:45]} cxb2+ {[%emt 0:00:37]} 32. Kb1 {[%emt 0:00:02]} h6 {[%emt 0:00:
00]} 33. Qg2 {[%emt 0:01:20]} Rc8 {[%emt 0:02:22]} 34. gxh6 {[%emt 0:00:53]}
0-1

[Event "44th Chess Olympiad Open 2022"]
[Site "Chennai"]
[Date "2022.08.03"]
[Round "6.76"]
[White "Nevska, Gerda"]
[Black "Prudente, Elmer"]
[Result "0-1"]
[WhiteElo "1840"]
[BlackElo "1995"]
[Annotator "NA"]
[PlyCount "56"]
[EventDate "2022.??.??"]
[TimeControl "60"]

1. d4 {[%emt 0:00:10]} Nf6 {[%emt 0:00:12]} 2. Nc3 {[%emt 0:00:19]} d5 {
[%emt 0:00:33]} 3. Bf4 {[%emt 0:00:10]} e6 {[%emt 0:00:42]} 4. e3 {[%emt 0:00:
00]} Bb4 {[%emt 0:01:34]} 5. Bd3 {[%emt 0:02:30]} c5 {[%emt 0:00:39]} 6. a3 {
[%emt 0:03:59]} Bxc3+ {[%emt 0:00:33]} 7. bxc3 {[%emt 0:00:07]} Qa5 {[%emt 0:
00:00]} 8. Nf3 {[%emt 0:05:46]} Qxc3+ {[%emt 0:01:16]} 9. Kf1 {[%emt 0:00:05]}
c4 {[%emt 0:01:02]} 10. Be2 {[%emt 0:00:08]} Ne4 {[%emt 0:00:46]} 11. Ng5 {
[%emt 0:07:27]} Nxg5 {[%emt 0:01:08]} 12. Bxg5 {[%emt 0:00:09]} h6 {[%emt 0:00:
00]} 13. Bf4 {[%emt 0:01:02]} Bd7 {[%emt 0:04:01]} 14. Be5 {[%emt 0:03:23]} Rg8
{[%emt 0:04:14]} 15. Bd6 {[%emt 0:07:57]} Ba4 {[%emt 0:00:09]} 16. Ra2 {
[%emt 0:00:09]} Nc6 {[%emt 0:02:04]} 17. g4 {[%emt 0:01:45]} O-O-O {[%emt 0:00:
00]} 18. Bg3 {[%emt 0:06:27]} f6 {[%emt 0:09:41]} 19. Qb1 {[%emt 0:09:54]} e5 {
[%emt 0:05:58]} 20. g5 {[%emt 0:01:05]} hxg5 {[%emt 0:03:04]} 21. Bg4+ {
[%emt 0:04:03]} Kc7 {[%emt 0:00:22]} 22. Rb2 {[%emt 0:00:18]} b6 {[%emt 0:00:
00]} 23. Kg2 {[%emt 0:01:14]} g6 {[%emt 0:00:28]} 24. dxe5 {[%emt 0:02:28]}
Nxe5 {[%emt 0:01:13]} 25. Rd1 {[%emt 0:04:15]} f5 {[%emt 0:01:57]} 26. Bf3 {
[%emt 0:05:21]} f4 {[%emt 0:01:16]} 27. Bxd5 {[%emt 0:01:53]} Rxd5 {[%emt 0:00:
00]} 28. Rxd5 {[%emt 0:00:25]} Bc6 {[%emt 0:00:02]} 0-1

[Event "44th Chess Olympiad Open 2022"]
[Site "Chennai"]
[Date "2022.08.03"]
[Round "6.76"]
[White "Soriano, Rudolph P."]
[Black "Brookfield, Toby"]
[Result "1-0"]
[WhiteElo "1824"]
[BlackElo "1815"]
[Annotator "NA RC"]
[PlyCount "75"]
[EventDate "2022.??.??"]
[TimeControl "60"]

1. Nf3 {[%emt 0:00:20]} g6 {[%emt 0:00:16]} 2. c4 {[%emt 0:00:12]} Bg7 {
[%emt 0:00:07]} 3. Nc3 {[%emt 0:00:46]} Nf6 {[%emt 0:00:39]} 4. g3 {[%emt 0:00:
00]} d5 {[%emt 0:02:15]} 5. d4 {[%emt 0:02:13]} c6 {[%emt 0:08:29]} 6. Bg2 {
[%emt 0:00:40]} O-O {[%emt 0:01:10]} 7. O-O {[%emt 0:00:31]} dxc4 {[%emt 0:00:
00]} 8. Ne5 {[%emt 0:02:46]} Nbd7 {[%emt 0:01:23]} 9. Nxc4 {[%emt 0:00:29]} Nb6
{[%emt 0:02:53]} 10. Na5 {[%emt 0:02:16]} Nbd5 {[%emt 0:06:39]} 11. Nb3 {
[%emt 0:01:22]} Nxc3 {[%emt 0:06:25]} 12. bxc3 {[%emt 0:00:35]} Nd7 {[%emt 0:
00:00]} 13. e4 {[%emt 0:02:39]} e5 {[%emt 0:03:41]} 14. Ba3 {[%emt 0:05:08]}
Re8 {[%emt 0:01:54]} 15. Rb1 {[%emt 0:07:26]} Nb6 {[%emt 0:01:33]} 16. Bc1 {
[%emt 0:04:55]} f5 {[%emt 0:04:49]} 17. f3 {[%emt 0:05:45]} Qc7 {[%emt 0:03:29]
} 18. Be3 {[%emt 0:02:23]} Nc4 {[%emt 0:04:57]} 19. Bf2 {[%emt 0:00:40]} Nd6 {
[%emt 0:05:39]} 20. Re1 {[%emt 0:09:22]} Kh8 {[%emt 0:01:40]} 21. Qc2 {[%emt 0:
00:00]} b6 {[%emt 0:02:46]} 22. Rbd1 {[%emt 0:01:09]} f4 {[%emt 0:00:52]} 23.
g4 {[%emt 0:01:09]} Nf7 {[%emt 0:05:50]} 24. dxe5 {[%emt 0:04:04]} Nxe5 {
[%emt 0:01:01]} 25. Nd4 {[%emt 0:00:51]} Bd7 {[%emt 0:03:06]} 26. h3 {[%emt 0:
00:00]} Rad8 {[%emt 0:04:29]} 27. Bh4 {[%emt 0:00:16]} Rb8 {[%emt 0:00:56]} 28.
Qb3 {[%emt 0:00:24]} Qc8 {[%emt 0:01:05]} 29. Bg5 {[%emt 0:00:46]} h5 {[%emt 0:
00:00]} 30. Kf2 {[%emt 0:02:02]} hxg4 {[%emt 0:00:35]} 31. hxg4 {[%emt 0:00:14]
} Bxg4 {[%emt 0:02:11]} 32. fxg4 {[%emt 0:03:54]} Nxg4+ {[%emt 0:01:12]} 33.
Ke2 {[%emt 0:00:33]} Bxd4 {[%emt 0:01:40]} 34. Rxd4 {[%emt 0:01:04]} Qf5 {
[%emt 0:01:15]} 35. Bd8 {[%emt 0:12:13]} Nh2 {[%emt 0:00:53]} 36. Kd2 {[%emt 0:
00:00]} Qg4 {[%emt 0:00:41]} 37. Bf6+ {[%emt 0:00:40]} Kh7 {[%emt 0:01:45]} 38.
Qf7+ {[%emt 0:00:27]} 1-0

[Event "44th Chess Olympiad Open 2022"]
[Site "Chennai"]
[Date "2022.08.03"]
[Round "6.76"]
[White "Morgan, Jamie"]
[Black "Estur, Gavino Aguilar"]
[Result "1/2-1/2"]
[WhiteElo "1753"]
[BlackElo "1598"]
[Annotator "NA RC"]
[PlyCount "71"]
[EventDate "2022.??.??"]
[TimeControl "60"]

1. e4 {[%emt 0:00:05]} e5 {[%emt 0:00:13]} 2. Bc4 {[%emt 0:00:10]} Nc6 {
[%emt 0:00:50]} 3. d3 {[%emt 0:00:30]} Nf6 {[%emt 0:01:40]} 4. Nf3 {[%emt 0:00:
00]} h6 {[%emt 0:00:29]} 5. O-O {[%emt 0:00:18]} Bc5 {[%emt 0:01:24]} 6. Nc3 {
[%emt 0:11:32]} d6 {[%emt 0:01:45]} 7. h3 {[%emt 0:04:33]} a6 {[%emt 0:03:14]}
8. Be3 {[%emt 0:04:18]} Bxe3 {[%emt 0:04:39]} 9. fxe3 {[%emt 0:05:46]} Na5 {
[%emt 0:00:44]} 10. Bb3 {[%emt 0:00:50]} Nxb3 {[%emt 0:00:49]} 11. axb3 {
[%emt 0:00:12]} O-O {[%emt 0:01:00]} 12. d4 {[%emt 0:03:54]} Qe7 {[%emt 0:00:
00]} 13. Nd5 {[%emt 0:03:03]} Nxd5 {[%emt 0:01:48]} 14. exd5 {[%emt 0:00:08]}
e4 {[%emt 0:01:08]} 15. Nd2 {[%emt 0:04:01]} Qg5 {[%emt 0:07:12]} 16. Rf4 {
[%emt 0:11:24]} Bxh3 {[%emt 0:08:53]} 17. Qe2 {[%emt 0:01:22]} Bd7 {[%emt 0:00:
00]} 18. Nxe4 {[%emt 0:02:08]} Qxd5 {[%emt 0:01:41]} 19. c4 {[%emt 0:04:12]}
Qe6 {[%emt 0:02:33]} 20. Raf1 {[%emt 0:02:53]} Rae8 {[%emt 0:02:07]} 21. Qf2 {
[%emt 0:14:49]} f5 {[%emt 0:02:26]} 22. g4 {[%emt 0:02:07]} g6 {[%emt 0:04:36]}
23. Kh1 {[%emt 0:04:31]} Qe7 {[%emt 0:08:12]} 24. gxf5 {[%emt 0:01:34]} Bxf5 {
[%emt 0:01:33]} 25. Ng3 {[%emt 0:00:23]} Qxe3 {[%emt 0:03:46]} 26. Nxf5 {
[%emt 0:01:07]} Qxf2 {[%emt 0:03:26]} 27. Nxh6+ {[%emt 0:01:34]} Kg7 {[%emt 0:
00:00]} 28. R4xf2 {[%emt 0:01:04]} Rxf2 {[%emt 0:01:02]} 29. Rxf2 {[%emt 0:00:
00]} Kxh6 {[%emt 0:00:24]} 30. Rf7 {[%emt 0:00:54]} Rc8 {[%emt 0:00:20]} 31.
Kg2 {[%emt 0:01:43]} g5 {[%emt 0:04:21]} 32. Kg3 {[%emt 0:00:33]} Kg6 {[%emt 0:
00:00]} 33. Re7 {[%emt 0:00:19]} Kf6 {[%emt 0:01:27]} 34. Rd7 {[%emt 0:00:13]}
Kf5 {[%emt 0:01:51]} 35. Re7 {[%emt 0:01:17]} Kf6 {[%emt 0:04:18]} 36. Rd7 {
[%emt 0:00:00]} 1/2-1/2

[Event "44th Chess Olympiad Open 2022"]
[Site "Chennai"]
[Date "2022.08.03"]
[Round "6.77"]
[White "Smith, Michael A"]
[Black "Hussain, Hashem"]
[Result "1/2-1/2"]
[WhiteElo "1840"]
[BlackElo "1757"]
[Annotator "NA RC"]
[PlyCount "120"]
[EventDate "2022.??.??"]
[TimeControl "60"]

1. d4 {[%emt 0:00:03]} Nf6 {[%emt 0:00:11]} 2. Nf3 {[%emt 0:00:19]} g6 {
[%emt 0:00:09]} 3. g3 {[%emt 0:00:41]} Bg7 {[%emt 0:00:15]} 4. Bg2 {[%emt 0:00:
00]} O-O {[%emt 0:00:36]} 5. O-O {[%emt 0:00:16]} d6 {[%emt 0:00:12]} 6. c4 {
[%emt 0:01:12]} Nbd7 {[%emt 0:02:19]} 7. Nc3 {[%emt 0:02:32]} c5 {[%emt 0:00:
00]} 8. Bf4 {[%emt 0:05:44]} cxd4 {[%emt 0:01:11]} 9. Nb5 {[%emt 0:04:19]} e5 {
[%emt 0:02:19]} 10. Bg5 {[%emt 0:03:32]} h6 {[%emt 0:03:05]} 11. Bd2 {[%emt 0:
00:00]} Nb6 {[%emt 0:03:38]} 12. Qc1 {[%emt 0:01:05]} a6 {[%emt 0:01:48]} 13.
Na3 {[%emt 0:01:13]} Kh7 {[%emt 0:06:23]} 14. e3 {[%emt 0:03:20]} dxe3 {
[%emt 0:06:39]} 15. Bxe3 {[%emt 0:01:51]} Be6 {[%emt 0:10:14]} 16. h3 {[%emt 0:
00:00]} Rc8 {[%emt 0:01:01]} 17. b3 {[%emt 0:02:56]} Nbd5 {[%emt 0:09:06]} 18.
Nc2 {[%emt 0:02:40]} Nxe3 {[%emt 0:00:35]} 19. Nxe3 {[%emt 0:00:14]} Qd7 {
[%emt 0:01:28]} 20. Kh2 {[%emt 0:01:00]} Nh5 {[%emt 0:00:40]} 21. Rb1 {[%emt 0:
00:00]} d5 {[%emt 0:03:36]} 22. Rd1 {[%emt 0:05:23]} d4 {[%emt 0:02:01]} 23.
Qa3 {[%emt 0:02:37]} e4 {[%emt 0:03:42]} 24. Nxd4 {[%emt 0:03:12]} Bxd4 {
[%emt 0:00:18]} 25. Nc2 {[%emt 0:01:50]} Qe8 {[%emt 0:09:03]} 26. Rxd4 {
[%emt 0:03:30]} f5 {[%emt 0:03:35]} 27. Rbd1 {[%emt 0:05:25]} Qf7 {[%emt 0:00:
00]} 28. R1d2 {[%emt 0:13:48]} Rfe8 {[%emt 0:02:13]} 29. Qa4 {[%emt 0:04:26]}
Nf6 {[%emt 0:02:51]} 30. Ne3 {[%emt 0:03:41]} Re7 {[%emt 0:06:29]} 31. Qa5 {
[%emt 0:05:38]} Rd7 {[%emt 0:04:04]} 32. Rxd7 {[%emt 0:03:32]} Nxd7 {[%emt 0:
00:00]} 33. Nd5 {[%emt 0:02:22]} Rc5 {[%emt 0:00:55]} 34. Qd8 {[%emt 0:04:01]}
Bxd5 {[%emt 0:00:25]} 35. Rxd5 {[%emt 0:00:53]} Rxd5 {[%emt 0:00:13]} 36. cxd5
{[%emt 0:00:22]} Qxd5 {[%emt 0:01:05]} 37. Qc7 {[%emt 0:01:36]} Qc6 {[%emt 0:
00:00]} 38. Qxc6 {[%emt 0:00:17]} bxc6 {[%emt 0:00:12]} 39. Bf1 {[%emt 0:00:06]
} a5 {[%emt 0:00:40]} 40. Be2 {[%emt 0:01:12]} Kg7 {[%emt 0:01:01]} 41. Kg2 {
[%emt 0:30:47]} Kf6 {[%emt 0:33:45]} 42. f3 {[%emt 0:03:18]} e3 {[%emt 0:02:16]
} 43. f4 {[%emt 0:01:05]} Ke6 {[%emt 0:02:17]} 44. Bc4+ {[%emt 0:00:00]} Kd6 {
[%emt 0:00:00]} 45. Kf3 {[%emt 0:00:00]} Nf6 {[%emt 0:00:00]} 46. Kxe3 {
[%emt 0:00:00]} Nd7 {[%emt 0:00:00]} 47. a3 {[%emt 0:00:00]} Kc5 {[%emt 0:00:
00]} 48. Bf7 {[%emt 0:00:00]} Nf8 {[%emt 0:00:00]} 49. Kd3 {[%emt 0:00:00]} g5
{[%emt 0:00:00]} 50. fxg5 {[%emt 0:00:00]} hxg5 {[%emt 0:00:00]} 51. h4 {
[%emt 0:00:00]} gxh4 {[%emt 0:00:00]} 52. gxh4 {[%emt 0:00:00]} Nd7 {[%emt 0:
00:00]} 53. Ke3 {[%emt 0:00:00]} Kd6 {[%emt 0:00:00]} 54. Kf4 {[%emt 0:00:00]}
Ke7 {[%emt 0:00:00]} 55. Bg6 {[%emt 0:00:00]} Nc5 {[%emt 0:00:00]} 56. Bxf5 {
[%emt 0:00:00]} Nxb3 {[%emt 0:00:00]} 57. h5 {[%emt 0:00:00]} Kf6 {[%emt 0:00:
00]} 58. h6 {[%emt 0:00:00]} Nd4 {[%emt 0:00:00]} 59. Bd3 {[%emt 0:00:00]} Nb5
{[%emt 0:00:00]} 60. a4 {[%emt 0:00:00]} Nc3 {[%emt 0:00:00]} 1/2-1/2

[Event "44th Chess Olympiad Open 2022"]
[Site "Chennai"]
[Date "2022.08.03"]
[Round "6.77"]
[White "Alhejab, Meshal"]
[Black "Conhoff, David"]
[Result "1-0"]
[WhiteElo "1732"]
[BlackElo "1460"]
[Annotator "NA RC"]
[PlyCount "61"]
[EventDate "2022.??.??"]
[TimeControl "60"]

1. e4 {[%emt 0:00:01]} e5 {[%emt 0:00:06]} 2. Nf3 {[%emt 0:00:07]} Nc6 {
[%emt 0:00:20]} 3. Bb5 {[%emt 0:00:30]} a6 {[%emt 0:00:29]} 4. Ba4 {[%emt 0:00:
00]} Nf6 {[%emt 0:00:57]} 5. O-O {[%emt 0:00:18]} b5 {[%emt 0:02:35]} 6. Bb3 {
[%emt 0:00:05]} h6 {[%emt 0:04:20]} 7. a4 {[%emt 0:00:38]} Bb7 {[%emt 0:05:14]}
8. c3 {[%emt 0:00:47]} d5 {[%emt 0:07:06]} 9. exd5 {[%emt 0:00:31]} Nxd5 {
[%emt 0:03:38]} 10. Re1 {[%emt 0:07:54]} e4 {[%emt 0:12:27]} 11. Rxe4+ {
[%emt 0:02:00]} Be7 {[%emt 0:01:29]} 12. axb5 {[%emt 0:00:40]} axb5 {[%emt 0:
00:00]} 13. Rxa8 {[%emt 0:01:17]} Bxa8 {[%emt 0:00:07]} 14. Na3 {[%emt 0:05:02]
} b4 {[%emt 0:07:02]} 15. Nb5 {[%emt 0:02:34]} Nf6 {[%emt 0:04:23]} 16. Re1 {
[%emt 0:02:04]} O-O {[%emt 0:02:09]} 17. d4 {[%emt 0:01:04]} Na5 {[%emt 0:00:
00]} 18. Bc2 {[%emt 0:01:53]} c6 {[%emt 0:04:34]} 19. cxb4 {[%emt 0:11:58]}
Bxb4 {[%emt 0:05:03]} 20. Nc3 {[%emt 0:01:42]} Nd5 {[%emt 0:05:23]} 21. Ne5 {
[%emt 0:09:36]} Re8 {[%emt 0:06:45]} 22. Qh5 {[%emt 0:20:11]} Qf6 {[%emt 0:00:
00]} 23. Ne4 {[%emt 0:04:48]} Qe7 {[%emt 0:03:26]} 24. Re2 {[%emt 0:07:01]} Nf6
{[%emt 0:02:07]} 25. Nxf6+ {[%emt 0:03:41]} Qxf6 {[%emt 0:00:55]} 26. Ng4 {
[%emt 0:03:20]} Qd8 {[%emt 0:04:06]} 27. Nxh6+ {[%emt 0:01:10]} gxh6 {[%emt 0:
00:00]} 28. Qg4+ {[%emt 0:00:25]} Kh8 {[%emt 0:00:52]} 29. Qf5 {[%emt 0:00:29]}
Kg7 {[%emt 0:02:24]} 30. Qh7+ {[%emt 0:00:10]} Kf6 {[%emt 0:00:03]} 31. Qxh6# {
[%emt 0:00:06]} 1-0